Cogmind - Beta 15 @@@ ROGUE MODE // 2025.08.19 @ 02:30:21 Player: Naughtyusername Result: Core destroyed Performance ------------- Evolutions (2) 1000 Regions Visited (6) 1200 Robots Destroyed (79) 395 Value Destroyed (4325) 4325 Prototype IDs (23) 460 Alien Tech Used (0) 0 Bonus (1062) 1062 TOTAL SCORE: 8442 Bonus ------- High Alert Combat Kills 555 Follower Combat Kills 7 Entered Garrisons 200 Aligned with FarCom 300 Cogmind --------- Core Integrity 0/550 Matter 293/300 Energy 250/290 System Corruption 1% Temperature Critical (567) Movement Treading (163) Location -8/Garrison Parts ------- > --- POWER (1) -------- Improved Deuterium Engine > --- PROPULSION (3) --- Light Treads Light Treads Armored Treads > --- UTILITY (4) ------ Heat Sink High-capacity Storage Unit Advanced Targeting Computer > --- WEAPON (3) ------- Particle Gun Particle Gun Particle Gun > --- INVENTORY (20) --- Light Nuclear Core Light Treads High-capacity Battery (250) High-capacity Battery (250) Advanced Targeting Computer Light Armor Plating PSU Rigger Particle Gun AWS/Thermal Ion Cannon Ion Cannon Ion Cannon Ion Cannon Mining Laser Hammer Peak State ------------ > --- POWER ------------ Improved Deuterium Engine > --- PROPULSION ------- Light Treads Light Treads Armored Treads > --- UTILITY ---------- Heat Sink Improved Heat Sink High-capacity Storage Unit Advanced Visual Processing Unit > --- WEAPON ----------- Pulse Rifle Pulse Rifle Pulse Rifle > --- INVENTORY -------- Improved Deuterium Engine Light Treads Aluminum Leg Carbon-fiber Leg Wheel Wheel Wheel Heat Sink High-capacity Battery High-capacity Battery Improved Light Armor Plating Relay Coupler [Duelist] PSU Rigger Field Laser AWS/Thermal YOLO Cannon Mining Laser Hammer [Rating: 33] Favorites ----------- Power Improved Deuterium Engine Engine Improved Deuterium Engine Propulsion Light Treads Treads Light Treads Leg Aluminum Leg Wheel Wheel Utility High-capacity Storage Unit Device Heat Sink Storage High-capacity Storage Unit Processor Advanced Targeting Computer Protection Core Shielding Weapon Light Assault Rifle Energy Gun Particle Gun Ballistic Gun Light Assault Rifle Impact Weapon Hammer Build | -11 -10 -10 -10 -9 -8 -8 ------- Run | Yrd Mat Min Exi Min Mat Gar Slots Evolved 4 | . . . . . 4 . Power . | . . . . . . . Propulsion 1 | . . . . . 1 . Utility 2 | . . . . . 2 . Weapon 1 | . . . . . 1 . Parts Attached 42 | 7 5 . . . 17 13 Power 5 | 1 1 . . . 2 1 Engine 5 | 1 1 . . . 2 1 Core . | . . . . . . . Reactor . | . . . . . . . Propulsion 13 | 2 . . . . 6 5 Treads 8 | 2 . . . . 1 5 Leg 2 | . . . . . 2 . Wheel 3 | . . . . . 3 . Hover . | . . . . . . . Flight . | . . . . . . . Utility 11 | 2 2 . . . 4 3 Device 4 | 1 . . . . 2 1 Storage 2 | 1 1 . . . . . Processor 2 | . . . . . 1 1 Hackware . | . . . . . . . Protection 3 | . 1 . . . 1 1 Artifact . | . . . . . . . Weapon 13 | 2 2 . . . 5 4 Energy Gun 7 | . . . . . 3 4 Energy Cannon . | . . . . . . . Ballistic Gun 5 | 2 1 . . . 2 . Ballistic Cannon . | . . . . . . . Launcher . | . . . . . . . Special Weapon . | . . . . . . . Impact Weapon 1 | . 1 . . . . . Slashing Weapon . | . . . . . . . Piercing Weapon . | . . . . . . . Special Melee Weapon . | . . . . . . . Unidentified Prototypes . | . . . . . . . Parts Lost 20 | . 2 . . . 8 10 Power 3 | . 1 . . . 1 1 Propulsion 5 | . . . . . 2 3 Utility 5 | . 1 . . . 2 2 Weapon 7 | . . . . . 3 4 Highest Loss Streak 6 | . 2 . . . 6 5 To Critical Strikes . | . . . . . . . Average Backups 12 | . 3 5 7 10 13 17 Power . | . . . . . 1 1 Propulsion . | . . . . . . 1 Utility 5 | . 1 1 1 3 3 10 Weapon 4 | . 1 4 5 6 6 4 Tool/Special . | . . . . . . . Unused Backups 31 | . . . . . 3 28 Power 4 | . . . . . 2 2 Propulsion 1 | . . . . . . 1 Utility 17 | . . . . . . 17 Weapon 9 | . . . . . 1 8 Tool/Special . | . . . . . . . Average Slot Usage (%) 98 | . 99 100 100 100 89 98 Engine 11 | . 13 14 14 14 8 9 Treads 25 | . 28 28 28 28 15 25 Wheel 1 | . . . . . 6 1 Device 8 | . 11 . . . 8 14 Storage 11 | . 14 14 14 14 9 9 Processor 4 | . . . . . 2 8 Protection 7 | . 2 14 14 14 9 3 Energy Gun 12 | . . . . . 10 26 Ballistic Gun 14 | . 28 28 28 28 16 . Peak Build Rating 33 | 7 7 7 12 12 31 33 Average Rating 20 | 5 6 7 9 12 23 29 On Entrance 10 | . 7 7 7 12 12 30 Naked Turns . | . . . . . . . Heaviest Build 63 | 13 48 46 46 46 62 63 Greatest Support 60 | 40 40 40 40 40 60 60 Greatest Overweight (x) 20 | 1 1 1 1 1 20 2 Average Overweight (x) 1 | . . 1 1 1 1 . Largest Inventory Capacity 20 | 8 20 20 20 20 20 20 Average Capacity 19 | 7 18 20 20 20 20 20 Most Carried 20 | 1 5 5 12 13 18 20 Average Carried 13 | . 3 5 8 12 15 18 Final Capacity 20 | 8 20 20 20 20 20 20 Final Carried 16 | 1 5 5 12 12 16 16 Class Distribution -------------------- 45% | Mutant 37% | Scavenger-Skirmisher 11% | Skirmisher 3% | Scavenger-Mutant Dominant Class ---------------- Mutant | -10/Materials Mutant | -10/Mines Mutant | -10/Exiles Mutant | -9/Mines Skirmisher | -8/Materials Scavenger-Skirmisher | -8/Garrison Resources | -11 -10 -10 -10 -9 -8 -8 ----------- Run | Yrd Mat Min Exi Min Mat Gar Matter Collected 1144 | 259 139 . . 16 470 260 Remotely . | . . . . . . . Salvage Created 2963 | 14 367 . . 46 798 1738 Parts 160 | 3 35 . . 7 45 70 Haulers Intercepted 1 | . . . . . 1 . Recyclers Shooed . | . . . . . . . Parts Field Recycled . | . . . . . . . Retrieved Matter . | . . . . . . . Parts Self-Destructed . | . . . . . . . Prevented . | . . . . . . . Kills | -11 -10 -10 -10 -9 -8 -8 ------- Run | Yrd Mat Min Exi Min Mat Gar Combat Hostiles Destroyed 69 | . 12 . . 3 16 38 Melee 1 | . . . . . . 1 Guns 64 | . 12 . . 3 15 34 Classes Destroyed 13 | 1 3 . . . 7 2 Worker 4 | . 2 . . . 2 . Builder 2 | . . . . . 2 . Tunneler 1 | 1 . . . . . . Hauler 1 | . . . . . 1 . Watcher 1 | . . . . . 1 . Swarmer 17 | . 6 . . 3 2 6 Saboteur 3 | . . . . . . 3 Grunt 29 | . 6 . . . 9 14 Brawler 2 | . . . . . 1 1 Duelist 6 | . . . . . 1 5 Sentry 7 | . . . . . 2 5 Hunter 1 | . . . . . 1 . Programmer 4 | . . . . . . 4 Savage 1 | . . . . . . 1 Best Kill Streak 8 | 1 4 . . 3 8 6 Combat Bots Only 6 | . 3 . . 3 6 6 Max Kills in Single Turn 3 | 1 2 . . 1 2 3 Gunslinging 2 | . 1 . . . 1 2 Exploded . | . . . . . . . Melee 1 | . . . . . . 1 Uniques/NPCs Destroyed . | . . . . . . . Combat | -11 -10 -10 -10 -9 -8 -8 -------- Run | Yrd Mat Min Exi Min Mat Gar Hostile Shots Fired 320 | . 64 . . 6 108 142 Missed 91 | . 17 . . 4 37 33 Hits 229 | . 47 . . 2 71 109 Melee 6 | . . . . . 5 1 Projectile 223 | . 47 . . 2 66 108 Critical Strikes 12 | . . . . . 3 9 Damage Taken 3309 | . 462 . . 15 1121 1711 Core 694 | . 77 . . . 175 442 Absorbed by Shields . | . . . . . . . Redirected to Shielding 34 | . . . . . 34 . Core Remaining (%) 84 | 100 . . . 69 . . Volleys Fired 227 | 3 42 . . 8 80 94 Largest 3 | 2 2 . . 2 3 3 Hottest 195 | 40 40 . . 40 189 195 Shots Fired 578 | 6 84 . . 16 217 255 Gun 578 | 6 84 . . 16 217 255 Cannon . | . . . . . . . Launcher . | . . . . . . . Special . | . . . . . . . Kinetic 248 | 6 84 . . 16 142 . Thermal 330 | . . . . . 75 255 Explosive . | . . . . . . . Electromagnetic . | . . . . . . . Robot Hit Streak 22 | 2 6 . . 9 9 22 Robot Miss Streak 6 | 2 3 . . 6 3 2 Penetration Max . | . . . . . . . Secondary Targets 16 | . 1 . . 1 3 11 Max Gunslinging Chain 2 | . 1 . . 1 1 2 Shots Hit Robots 363 | 3 52 . . 7 134 167 Core Hits 164 | 2 27 . . 5 53 77 Critical Kills . | . . . . . . . Critical Parts Destroyed . | . . . . . . . Critical Strikes 12 | . . . . . . 12 Burn 12 | . . . . . . 12 Melee Attacks 1 | . . . . . . 1 Impact 1 | . . . . . . 1 Slashing . | . . . . . . . Piercing . | . . . . . . . Sneak Attacks . | . . . . . . . Combat Hostiles . | . . . . . . . Follow-up Attacks . | . . . . . . . Damage Inflicted 5424 | 25 411 . . 58 1900 3030 Guns 5419 | 25 408 . . 56 1900 3030 Cannons . | . . . . . . . Explosions . | . . . . . . . Melee . | . . . . . . . Ramming 5 | . 3 . . 2 . . Kinetic 1489 | 25 408 . . 56 1000 . Thermal 3930 | . . . . . 900 3030 Explosive . | . . . . . . . Electromagnetic . | . . . . . . . Impact . | . . . . . . . Slashing . | . . . . . . . Piercing . | . . . . . . . Highest Corruption 1 | . . . . . . 1 Average Corruption 1 | . . . . . . 1 Corruption Purged . | . . . . . . . Corruption Blocked . | . . . . . . . Overload Shots . | . . . . . . . Overflow Damage . | . . . . . . . Projectiles . | . . . . . . . Explosions . | . . . . . . . Melee . | . . . . . . . Knockbacks . | . . . . . . . Impact . | . . . . . . . Kinetic . | . . . . . . . Secondary . | . . . . . . . Self-Inflicted Damage 65 | . . . . . . 65 Shots 1 | . . . . . . 1 Rammed 2 | . 1 . . 1 . . Targets Rammed 2 | . 1 . . 1 . . Kicked . | . . . . . . . Crushed . | . . . . . . . Highest Temperature 567 | . 24 . . . 257 567 Average Temperature 104 | . 8 . . . 76 123 Received Heat Transfer 1344 | . 156 . . . 486 702 Effects 13 | . . . . . 2 11 Shutdowns 2 | . . . . . . 2 Interference 3 | . . . . . 2 1 Matter Decay 2 | . . . . . . 2 Damage (minor) 1 | . . . . . . 1 Damage (major) 4 | . . . . . . 4 Damage (core) 1 | . . . . . . 1 Siege Activations . | . . . . . . . Martial Activations . | . . . . . . . Shielding Activations . | . . . . . . . Robots Disrupted . | . . . . . . . Combat Hostiles . | . . . . . . . Robots Corrupted . | . . . . . . . Combat Hostiles . | . . . . . . . Parts Fried . | . . . . . . . Impact Corruptions . | . . . . . . . Robots Melted 5 | . . . . . 1 4 Combat Hostiles 4 | . . . . . 1 3 Parts Melted 25 | . . . . . 2 23 Heat Transferred 9258 | . . . . . 1961 7297 Parts Sabotaged 2 | . . . . . . 2 Parts Stolen . | . . . . . . . Parts Stripped . | . . . . . . . Power Chain Reactions . | . . . . . . . Alert | -11 -10 -10 -10 -9 -8 -8 ------- Run | Yrd Mat Min Exi Min Mat Gar Maximum Alert Level 5 | . . . . . 1 5 Low Security (%) 47 | 100 100 100 . 100 83 2 Level 1 10 | . . . . . 16 16 Level 2 10 | . . . . . . 19 Level 3 12 | . . . . . . 24 Level 4 7 | . . . . . . 14 Level 5 11 | . . . . . . 23 High Security . | . . . . . . . Max Security . | . . . . . . . Peak Influence 2347 | 5 127 33 . 70 238 2347 Initial 125 | . . 33 . . . 125 Average 548 | . 41 7 . 4 78 1034 Influence Increases 3293 | 5 345 . . 70 531 2342 Destroy 0b10 Robot/C 1400 | . 240 . . 60 320 780 Destroy 0b10 Robot/NC 60 | 5 10 . . . 30 15 Destroy Leader 174 | . 50 . . 10 84 30 Allied During Kill 21 | . . . . . . 21 Successful Hack 28 | . 15 . . . 6 7 Disable Machine 15 | . . . . . 15 . Anti-Garrison Action 1400 | . . . . . . 1400 Destroy Structure 45 | . . . . . 1 44 Lose Combat Pursuer 150 | . 30 . . . 75 45 Influence Decreases 946 | 5 258 87 . 70 338 188 Entered New Map 122 | . . 54 . . . 68 Time Decay 604 | 5 238 33 . 70 258 . Lost Part 200 | . 20 . . . 80 100 Lost Ally 20 | . . . . . . 20 Squads Dispatched 9 | . 3 . . . 6 . Investigation 3 | . 2 . . . 1 . Extermination . | . . . . . . . Reinforcement 3 | . 1 . . . 2 . Assault . | . . . . . . . Garrison 3 | . . . . . 3 . Intercept . | . . . . . . . Searches Triggered . | . . . . . . . Construction Impeded 1 | . . . . . 1 . Haulers Reinforced . | . . . . . . . Active Scanning Responses . | . . . . . . . Cargo Convoy Interrupts . | . . . . . . . Stealth | -11 -10 -10 -10 -9 -8 -8 --------- Run | Yrd Mat Min Exi Min Mat Gar Distress Signals 9 | . 4 . . . 5 . Communications Jammed . | . . . . . . . Distress Signals . | . . . . . . . Times Spotted 91 | . 20 . . 3 29 39 Peak Tracking Total 7 | . 5 . . 3 6 7 Tactical Retreats 7 | . 1 . . . 4 2 Traps | -11 -10 -10 -10 -9 -8 -8 ------- Run | Yrd Mat Min Exi Min Mat Gar Traps Triggered 18 | . 1 . . . 1 16 Indirectly . | . . . . . . . Trap Hack Attempts . | . . . . . . . Triggered . | . . . . . . . Disarmed . | . . . . . . . Reprogrammed . | . . . . . . . Reused . | . . . . . . . Traps Extracted . | . . . . . . . Installed . | . . . . . . . Triggered . | . . . . . . . Machines | -11 -10 -10 -10 -9 -8 -8 ---------- Run | Yrd Mat Min Exi Min Mat Gar Machines Disabled 11 | . . . . . 1 10 Max in Single Turn 2 | . . . . . 1 2 Garrison Relay 8 | . . . . . . 8 Phase Generator 1 | . . . . . . 1 Machines Repaired . | . . . . . . . Machines Dismantled . | . . . . . . . Machines Sabotaged . | . . . . . . . Overloaded Fab Kills . | . . . . . . . Hacking | -11 -10 -10 -10 -9 -8 -8 --------- Run | Yrd Mat Min Exi Min Mat Gar Machines Accessed 14 | . 3 . 5 . 2 4 Terminals 8 | . 3 . . . 1 4 Fabricators . | . . . . . . . Repair Stations . | . . . . . . . Recycling Units . | . . . . . . . Scanalyzers . | . . . . . . . Garrison Access 1 | . . . . . 1 . Total Hacks 54 | . 15 . 28 . 3 8 Successful 37 | . 4 . 28 . 3 2 Failed 17 | . 11 . . . . 6 Catastrophic 5 | . 4 . . . . 1 Database Lockouts . | . . . . . . . Manual 7 | . 5 . 1 . 1 . Terminals 25 | . 15 . . . 2 8 Fabricators . | . . . . . . . Repair Stations . | . . . . . . . Recycling Units . | . . . . . . . Scanalyzers . | . . . . . . . Garrison Access 1 | . . . . . 1 . Terminal Hacks 35 | . 3 . 28 . 2 2 Record 27 | . . . 27 . . . Robot Analysis 1 | . 1 . . . . . Open Door 1 | . . . . . . 1 Emergency Access Points 1 | . . . . . . 1 Terminal Index 1 | . 1 . . . . . Scanalyzer Index 1 | . . . . . 1 . Hauler Manifests 1 | . 1 . . . . . Zone Layout 1 | . . . . . 1 . Proto ID Catalog 1 | . . . 1 . . . Fabricator Hacks . | . . . . . . . Repair Station Hacks . | . . . . . . . Recycling Unit Hacks . | . . . . . . . Scanalyzer . | . . . . . . . Garrison Access Hacks 1 | . . . . . 1 . Unlock Access 1 | . . . . . 1 . Unauthorized Hacks 1 | . 1 . . . . . Terminals 1 | . 1 . . . . . Botnet 1 | . 1 . . . . . Fabricators . | . . . . . . . Repair Stations . | . . . . . . . Recycling Units . | . . . . . . . Scanalyzers . | . . . . . . . Garrison Access . | . . . . . . . Data Cores Recovered . | . . . . . . . Used . | . . . . . . . Hacking Detections 7 | . 3 . . . 1 3 Full Trace Events 3 | . 2 . . . . 1 Feedback Events . | . . . . . . . Feedback Blocked . | . . . . . . . Robot Schematics Acquired . | . . . . . . . Robots Built . | . . . . . . . Authchips . | . . . . . . . Time . | . . . . . . . Total Robot Build Rating . | . . . . . . . Part Schematics Acquired . | . . . . . . . Parts Built . | . . . . . . . Authchips . | . . . . . . . Time . | . . . . . . . Total Part Build Rating . | . . . . . . . Parts Repaired . | . . . . . . . Time . | . . . . . . . Parts Recycled . | . . . . . . . Recycled Matter . | . . . . . . . Retrieved Matter . | . . . . . . . Retrieved Components . | . . . . . . . Parts Scanalyzed . | . . . . . . . Part Schematics Acquired . | . . . . . . . Parts Damaged . | . . . . . . . Bothacking | -11 -10 -10 -10 -9 -8 -8 ------------ Run | Yrd Mat Min Exi Min Mat Gar Used RIF Installer . | . . . . . . . Robots Hacked . | . . . . . . . Non-combat . | . . . . . . . Combat . | . . . . . . . Robot Hacks Applied . | . . . . . . . Relay Couplers Released 32 | . . . . . . 32 Machine Destruction 32 | . . . . . . 32 Fabnet Peak Effective % . | . . . . . . . Robots Rewired 2 | . . . . . . 2 Allies Hacked . | . . . . . . . Hacks Repelled . | . . . . . . . Allies | -11 -10 -10 -10 -9 -8 -8 -------- Run | Yrd Mat Min Exi Min Mat Gar Total Allies 2 | . . . . . . 2 Largest Group 2 | . . . . . . 2 Highest-Rated Group 51 | . . . . . . 51 Highest-Rated Ally 31 | . . . . . . 31 Total Orders . | . . . . . . . Ally Attacks 12 | . . . . . . 12 Total Damage 163 | . . . . . . 163 Kills 1 | . . . . . . 1 Allies Corrupted . | . . . . . . . Allies Melted . | . . . . . . . Intel | -11 -10 -10 -10 -9 -8 -8 ------- Run | Yrd Mat Min Exi Min Mat Gar Active Infowar (turns) 1059 | 34 511 . . . 199 315 Optics 514 | . . . . . 199 315 Seismic 545 | 34 511 . . . . . Robot Analysis Total 1 | . 1 . . . . . Derelict Logs Recovered 1 | . . . . 1 . . Drone Launches . | . . . . . . . Drone Recoveries . | . . . . . . . Exploration | -11 -10 -10 -10 -9 -8 -8 ------------- Run | Yrd Mat Min Exi Min Mat Gar Turns Passed 7179 | 88 604 178 1102 1230 851 3126 Spaces Moved 2841 | 46 216 75 458 491 347 1208 Core 6 | 5 . . . . 1 . Treads 2565 | 41 216 75 458 491 178 1106 Legs . | . . . . . . . Wheels 270 | . . . . . 168 102 Hover . | . . . . . . . Flight . | . . . . . . . Fastest Speed 50 | 50 160 240 240 240 110 95 Average Speed 220 | 151 223 240 240 240 159 223 Slowest Speed 1050 | 160 240 240 240 240 1050 245 Overloaded Moves . | . . . . . . . Propulsion Burnouts . | . . . . . . . Robots Hopped . | . . . . . . . Potential Cave-ins . | . . . . . . . Cave-ins Triggered . | . . . . . . . Exploration Rate (%) 54 | 4 48 17 90 100 42 81 Regions Visited 6 Branch Regions 3 Pre-discovered Areas 1 | . . . 1 . . . Known Exits Taken 1 | . . . . . 1 . Unknown Exits Taken 5 | 1 1 1 1 1 . . Scrap Searched 2 | . . . . 2 . . Spaces Dug . | . . . . . . . Terrain Destroyed 73 | . . . . . . 73 Melee . | . . . . . . . Projectile . | . . . . . . . AOE 73 | . . . . . . 73 Terrain Rammed . | . . . . . . . Walls Destroyed . | . . . . . . . Machines Disabled . | . . . . . . . Actions | -11 -10 -10 -10 -9 -8 -8 --------- Run | Yrd Mat Min Exi Min Mat Gar Total 3311 | 56 269 74 462 530 484 1436 Wait 67 | . . . . 29 17 21 Move 2836 | 45 215 74 457 490 347 1208 Hop . | . . . . . . . Pick Up 48 | 1 4 . 5 1 12 25 Fast Attach 22 | 7 . . . . 8 7 Attach 16 | . 3 . . . 7 6 Detach 6 | . 1 . . . 3 2 Swap 15 | . 3 . . . 4 8 Drop 27 | . . . . 1 6 20 Fire 227 | 3 42 . . 8 80 94 Melee 1 | . . . . . . 1 Ram . | . . . . . . . Kick . | . . . . . . . Crush 2 | . 1 . . 1 . . Escape Stasis 24 | . . . . . . 24 Rewire 20 | . . . . . . 20 Trap . | . . . . . . . Miscellaneous . | . . . . . . . Route ------- -11/Scrapyard -10/Materials -10/Mines -10/Exiles (discovered 2 exits: [*Min x2]) -9/Mines (discovered 2 exits: *Mat x2) -8/Materials -8/Garrison (discovered 3 exits: [*Mat x3]) History --------- Turn | Location | Event 8 | -11/Scrapyard | Discovered new exit (range 16) 89 | -11/Scrapyard | Entered Materials 316 | -10/Materials | Build established: Mutant 608 | -10/Materials | Discovered new exit (range 9) 693 | -10/Materials | Entered Mines 859 | -10/Mines | Deemed a non-threat by the Exiles lab entrance 861 | -10/Mines | Discovered new exit (range 5) 871 | -10/Mines | Entered Exiles 910 | -10/Exiles | Discovered new exit (range 15) 936 | -10/Exiles | Met 8R-AWN 970 | -10/Exiles | Met EX-HEX 1039 | -10/Exiles | Met EX-BIN 1075 | -10/Exiles | Aligned with FarCom system 1078 | -10/Exiles | Given EX-Vault access code 1174 | -10/Exiles | Opened EX-Vault 1193 | -10/Exiles | Found YOLO Cannon 1199 | -10/Exiles | Found PSU Rigger 1214 | -10/Exiles | Found AWS/Thermal 1261 | -10/Exiles | Warned to stay clear of 0b10 Research branches 1326 | -10/Exiles | Met EX-DEC 1352 | -10/Exiles | Learned location of Zion (-6) 1459 | -10/Exiles | Visited The Gauntlet 1942 | -10/Exiles | Discovered new exit (range 14) 1973 | -10/Exiles | Stole three prototypes: PSU Rigger, AWS/Thermal, YOLO Cannon 1973 | -10/Exiles | Entered Mines 1974 | -9/Mines | Met a Derelict bent on vengeance 2237 | -9/Mines | Discovered new exit (range 10) 2278 | -9/Mines | Learned 4 Materials zone layouts 2357 | -9/Mines | Discovered new exit (range 7) 3203 | -9/Mines | Entered Materials 3203 | -8/Materials | Evolved 4 slots: Propulsion x1, Utility x2, Weapon x1 3630 | -8/Materials | Garrison activated, responded to threat 3751 | -8/Materials | Lost 6 parts (2n1u3w) 4054 | -8/Materials | Identified exit to Garrison 4054 | -8/Materials | Entered Garrison 4081 | -8/Garrison | Build established: Scavenger-Skirmisher 4084 | -8/Garrison | Triggered checkpoint 4303 | -8/Garrison | Garrison Relay disabled 4524 | -8/Garrison | Build established: Skirmisher 4674 | -8/Garrison | Core integrity fell below 50% 4723 | -8/Garrison | Lost 5 parts (1p2n2w) 4856 | -8/Garrison | Triggered checkpoint 4880 | -8/Garrison | Triggered checkpoint 4931 | -8/Garrison | Discovered new exit (range 15) 5358 | -8/Garrison | Discovered new exit (range 10) 5414 | -8/Garrison | Triggered checkpoint 5449 | -8/Garrison | Garrison Relay disabled 5457 | -8/Garrison | Build established: Scavenger-Skirmisher 5692 | -8/Garrison | Discovered new exit (range 15) 5770 | -8/Garrison | Triggered checkpoint 5828 | -8/Garrison | Garrison Relay disabled 6000 | -8/Garrison | Triggered checkpoint 6040 | -8/Garrison | Lost 3 parts (1n1u1w) 6130 | -8/Garrison | Garrison Relay disabled 6529 | -8/Garrison | Phase Generator disabled 6704 | -8/Garrison | Garrison Relay disabled 6707 | -8/Garrison | Garrison Relay disabled 6715 | -8/Garrison | Garrison Relay disabled 6723 | -8/Garrison | Garrison Relay disabled 7163 | -8/Garrison | Core integrity fell below 20% 7181 | -8/Garrison | Core destroyed Last Messages --------------- 06905_ Acquired Ion Cannon. 07054_ ALERT: Garrison interior compromised. 07154_ P-60 Hacker springs to life. 07165_ Imp. Light Armor Plating destroyed. 07166_ P-60 Hacker destroyed. 07169_ Destroyed Shock Rifle. 07169_ P-60 Hacker suffers critical hit (Burn). 07169_ Remote Datajack melted. 07169_ Gravmag System melted. 07169_ P-60 Hacker destroyed. 07174_ Overheating: Matter decay (-39). 07174_ Acquired 39 matter. 07176_ Power failure, Imp. Deuterium Engine shutdown. 07178_ Overheating: Matter decay (-48). 07178_ Acquired 1 matter. 07179_ Gravmag System melted. 07179_ P-60 Hacker destroyed. 07180_ Acquired 40 matter. 07181_ Overheating: Core damaged (-110). Map ----- +----------------------------------------------------+ | | | | | | | | | | | | | | | | | | | ?????????????????????????????????????????????????? | | ?????????????????????????????????????????????????? | | ?????????????????????????????????????????????????? | | ?????????????????????????????????????????????????? | | ?????????????????????????????????????????????????? | | ?????????????????????????????????????????????????? | | ?????????????????????????????????????????????????? | | ?????????????????????????????????????????????????? | | ???????????????????????###???????????????????????? | | ??????????????????????? ???????????????????????? | | ???????????????????????# #???????????????????????? | | ???? ???????????????+## #?+?????????????????????? | | ???? ???????????????? # #???????????????????????? | | ???? ????????????????? ???????????????????####? | | ???# ?????????????????#=#?????????????????### # # | | ???# ??################%####?????????????## ## | | ???# ??# =*@ #????????????## | | ???# ??# [| #????????????## | | ???# #?# #???????????### | | ??## #?# #???????????# | | ??? #?# #???????????## | | ???# #?# #???????????# # | | ???# #?# #???????????# | | ???# ### #????????????# | | ???# * = #????????????# | | ???# %= < ! #????????????# # = | | ???# ### = #????????????## % | | ???# #?# = % #?????????????## # # | | ???# #?# #??????????????##### # | | ???# #?# #??????????????????# # | | ???# ## = #?????????????????## # | | #### ## % ###########???????# | | ## ## #???????# | | # ### ######### #???????# # | | # #?# #???????? ????????# # | | =%! #?################## #???????? ????????# # | | #### #??????????????????# #???????# #???????# # | | ???# #??????????????????# #???????# #???????# !# | | ???# #??????????????????# #???????# #???????#/ | | ???# #????????####??????# #??????? #???????#%!# | | ???# #????????#""#??????# #???????# #?#######!*# | +----------------------------------------------------+ Best States ------------- Heat Dissipation 55 Energy Generation 16 Energy Capacity 290 Matter Stores 300 Matter Capacity 300 Sight Range 20 Terrain Scan Density 10 Armor Coverage 150 Core Shielding 20 Evasion (%) 40 Targeting Accuracy 8 Recoil Reduction 3 Item Schematics ----------------- None Robot Schematics ------------------ None Fabricated ------------ Nothing Repaired ---------- Nothing Alien Tech Used ----------------- None Achievements -------------- None Challenges ------------ None Game ------ Seed TachyonChargedFragment Manual? 0 Play Time 00:26:20 Cumulative 113.6 hours Start 2025.08.19 @ 02:06:45 End 2025.08.19 @ 02:30:21 Sessions 1 Manual Loads 0 Difficulty Rogue Special Mode None Game No. 51 Rogue 51 Adventurer 0 Explorer 0 Win Type - Total 1 Types 0/0/1/0/0/0/0/0/0/0 Lore% 71 Gallery% 59 Achievement% 76 Wizard Run 0 Options --------- Layout 2 ASCII 0 Keyboard 1 Movement Vi Keybinds 0 Fullscreen 1 Font 28/SwanstonBold Map View 50x52 Zoom Use 0% Tactical HUD 1 Map Filters NONE Filters NONE Steam 1 RUN: 02af9011-053d-4c75-bad6-68d4340a2cab